fUST/lending_fUST_20260621
["ID","MTS","AMOUNT","RATE_DAILY","PERIOD"]
[425847308,1781988640000,-505.25390246,0.00016438,2]
[425847311,1781988640000,-505.99951201,0.00016438,2]
[425847303,1781988640000,-508.21262576,0.00016438,2]
[425847296,1781988640000,-514.72597486,0.00016438,2]
[425847297,1781988640000,-503.8964734,0.00016438,2]
[425847304,1781988640000,-500.0,0.00016438,2]
[425847300,1781988640000,-503.85010821,0.00016438,2]
[425847394,1781988641000,-501.08190387,0.00016438,2]
[425847393,1781988641000,-500.0,0.00016438,2]
[425847389,1781988641000,-503.07011726,0.00016438,2]
[425847388,1781988641000,-500.0,0.00016438,2]
[425847383,1781988641000,-514.34733163,0.00016438,2]
[425847384,1781988641000,-243.15852237,0.00016438,2]
[425847385,1781988641000,-500.0,0.00016438,2]
[425847390,1781988641000,-501.49352412,0.00016438,2]
[425847382,1781988641000,-500.0,0.00016438,2]
[425847387,1781988641000,-502.30344749,0.00016438,2]
[425847386,1781988641000,-413.66388426,0.00016438,2]
[425847403,1781988641000,-507.36038185,0.00016438,2]
[425847395,1781988641000,-526.62072261,0.00016438,2]
[425847396,1781988641000,-502.14612301,0.00016438,2]
[425847399,1781988641000,-508.34979971,0.00016438,2]
[425847397,1781988641000,-500.0,0.00016438,2]
[425847405,1781988641000,-511.1060596,0.00016438,2]
[425847407,1781988641000,-502.30084753,0.00016438,2]
[425847400,1781988641000,-501.58451936,0.00016438,2]
[425847401,1781988641000,-500.0,0.00016438,2]
[425847379,1781988641000,-528.25905744,0.00016438,2]
[425847406,1781988641000,-502.95697517,0.00016438,2]
[425847391,1781988641000,-509.30916404,0.00016438,2]
[425847377,1781988641000,-500.0,0.00016438,2]
[425847354,1781988641000,-525.96938361,0.00016438,2]
[425847378,1781988641000,-500.0,0.00016438,2]
[425847402,1781988641000,-507.32392079,0.00016438,2]
[425847344,1781988641000,-518.78,0.00016438,2]
[425847345,1781988641000,-500.0,0.00016438,2]
[425847359,1781988641000,-503.73646138,0.00016438,2]
[425847357,1781988641000,-512.13113627,0.00016438,2]
[425847348,1781988641000,-500.0,0.00016438,2]
[425847346,1781988641000,-342.39545924,0.00016438,2]
[425847361,1781988641000,-525.26542671,0.00016438,2]
[425847350,1781988641000,-517.13049268,0.00016438,2]
[425847355,1781988641000,-501.73302891,0.00016438,2]
[425847376,1781988641000,-500.0,0.00016438,2]
[425847352,1781988641000,-500.0,0.00016438,2]
[425847364,1781988641000,-588.95518771,0.00016438,2]
[425847368,1781988641000,-500.0,0.00016438,2]
[425847366,1781988641000,-503.26034099,0.00016438,2]
[425847371,1781988641000,-501.94274662,0.00016438,2]
[425847381,1781988641000,-559.51,0.00016438,2]
[425847380,1781988641000,-208.60640326,0.00016438,2]
[425847370,1781988641000,-515.77508141,0.00016438,2]
[425847373,1781988641000,-506.57644997,0.00016438,2]
[425847374,1781988641000,-508.13110172,0.00016438,2]
[425847375,1781988641000,-503.67575133,0.00016438,2]
[425847362,1781988641000,-345.57989912,0.00016438,2]
[425847404,1781988641000,-510.83540253,0.00016438,2]
[425847392,1781988641000,-502.01767212,0.00016438,2]
[425847408,1781988641000,-502.72095923,0.00016438,2]
[425847434,1781988641000,-502.68174304,0.00016438,2]
[425847436,1781988641000,-504.02234427,0.00016438,2]
[425847437,1781988641000,-507.83276279,0.00016438,2]
[425847438,1781988641000,-508.41,0.00016438,2]
[425847439,1781988641000,-515.33426736,0.00016438,2]
[425847440,1781988641000,-500.0,0.00016438,2]
[425847441,1781988641000,-500.0,0.00016438,2]
[425847442,1781988641000,-500.0,0.00016438,2]
[425847443,1781988641000,-500.0,0.00016438,2]
[425847452,1781988641000,-500.0,0.00016438,2]
[425847447,1781988641000,-500.0,0.00016438,2]
[425847444,1781988641000,-500.0,0.00016438,2]
[425847450,1781988641000,-500.0,0.00016438,2]
[425847445,1781988641000,-500.0,0.00016438,2]
[425847448,1781988641000,-502.884896,0.00016438,2]
[425847449,1781988641000,-523.46813501,0.00016438,2]
[425847451,1781988641000,-523.66,0.00016438,2]
[425847454,1781988641000,-503.50262055,0.00016438,2]
[425847453,1781988641000,-500.0,0.00016438,2]
[425847456,1781988641000,-500.0,0.00016438,2]
[425847455,1781988641000,-475.42179417,0.00016438,2]
[425847457,1781988641000,-500.0,0.00016438,2]
[425847398,1781988641000,-501.22472386,0.00016438,2]
[425847435,1781988641000,-537.59040397,0.00016438,2]
[425847433,1781988641000,-500.0,0.00016438,2]
[425847446,1781988641000,-528.38,0.00016438,2]
[425847429,1781988641000,-500.0,0.00016438,2]
[425847409,1781988641000,-500.0,0.00016438,2]
[425847432,1781988641000,-544.95407695,0.00016438,2]
[425847411,1781988641000,-190.32099583,0.00016438,2]
[425847410,1781988641000,-525.90924593,0.00016438,2]
[425847414,1781988641000,-157.13420102,0.00016438,2]
[425847413,1781988641000,-500.0,0.00016438,2]
[425847412,1781988641000,-200.0,0.00016438,2]
[425847416,1781988641000,-500.0,0.00016438,2]
[425847417,1781988641000,-467.13075525,0.00016438,2]
[425847422,1781988641000,-533.7683437,0.00016438,2]
[425847421,1781988641000,-507.69434541,0.00016438,2]
[425847418,1781988641000,-503.44238565,0.00016438,2]
[425847415,1781988641000,-500.0,0.00016438,2]
[425847420,1781988641000,-507.48966545,0.00016438,2]
[425847419,1781988641000,-500.41531129,0.00016438,2]
[425847423,1781988641000,-506.4337809,0.00016438,2]
[425847458,1781988641000,-511.01786067,0.00016438,2]
[425847424,1781988641000,-500.0,0.00016438,2]
[425847427,1781988641000,-501.89563945,0.00016438,2]
[425847425,1781988641000,-500.0,0.00016438,2]
[425847428,1781988641000,-506.8031324,0.00016438,2]
[425847426,1781988641000,-500.0,0.00016438,2]
[425847431,1781988641000,-515.20795051,0.00016438,2]
[425847430,1781988641000,-504.80728259,0.00016438,2]
[425847500,1781988642000,-500.0,0.00016438,2]
[425847496,1781988642000,-500.0,0.00016438,2]
[425847501,1781988642000,-502.39393082,0.00016438,2]
[425847499,1781988642000,-448.86425624,0.00016438,2]
[425847494,1781988642000,-522.11492364,0.00016438,2]
[425847493,1781988642000,-500.0,0.00016438,2]
[425847498,1781988642000,-501.19628754,0.00016438,2]
[425847492,1781988642000,-724.83,0.00016438,2]
[425847488,1781988642000,-500.0,0.00016438,2]
[425847487,1781988642000,-337.47682752,0.00016438,2]
[425847495,1781988642000,-500.0,0.00016438,2]
[425847497,1781988642000,-500.0,0.00016438,2]
[425847503,1781988642000,-501.84000062,0.00016438,2]
[425847517,1781988642000,-500.0,0.00016438,2]
[425847502,1781988642000,-500.0,0.00016438,2]
[425847506,1781988642000,-500.0,0.00016438,2]
[425847505,1781988642000,-500.0,0.00016438,2]
[425847507,1781988642000,-500.0,0.00016438,2]
[425847508,1781988642000,-525.47713549,0.00016438,2]
[425847511,1781988642000,-505.62127381,0.00016438,2]
[425847509,1781988642000,-500.0,0.00016438,2]
[425847510,1781988642000,-507.55401636,0.00016438,2]
[425847512,1781988642000,-519.13772961,0.00016438,2]
[425847513,1781988642000,-500.0,0.00016438,2]
[425847514,1781988642000,-500.0,0.00016438,2]
[425847490,1781988642000,-500.0,0.00016438,2]
[425847504,1781988642000,-500.0,0.00016438,2]
[425847485,1781988642000,-565.31822084,0.00016438,2]
[425847464,1781988642000,-510.42327475,0.00016438,2]
[425847486,1781988642000,-500.0,0.00016438,2]
[425847459,1781988642000,-500.0,0.00016438,2]
[425847460,1781988642000,-502.53974438,0.00016438,2]
[425847462,1781988642000,-500.0,0.00016438,2]
[425847461,1781988642000,-500.0,0.00016438,2]
[425847516,1781988642000,-500.0,0.00016438,2]
[425847463,1781988642000,-500.0,0.00016438,2]
[425847465,1781988642000,-500.0,0.00016438,2]
[425847466,1781988642000,-518.27354259,0.00016438,2]
[425847467,1781988642000,-500.0,0.00016438,2]
[425847468,1781988642000,-500.0,0.00016438,2]
[425847469,1781988642000,-501.77523733,0.00016438,2]
[425847472,1781988642000,-500.8206007,0.00016438,2]
[425847478,1781988642000,-534.73519543,0.00016438,2]
[425847476,1781988642000,-500.0,0.00016438,2]
[425847479,1781988642000,-500.0,0.00016438,2]
[425847470,1781988642000,-560.85454787,0.00016438,2]
[425847473,1781988642000,-508.34432582,0.00016438,2]
[425847471,1781988642000,-500.0,0.00016438,2]
[425847475,1781988642000,-500.0,0.00016438,2]
[425847474,1781988642000,-500.0,0.00016438,2]
[425847477,1781988642000,-508.55372179,0.00016438,2]
[425847481,1781988642000,-500.0,0.00016438,2]
[425847480,1781988642000,-500.0,0.00016438,2]
[425847483,1781988642000,-500.0,0.00016438,2]
[425847491,1781988642000,-500.0,0.00016438,2]
[425847482,1781988642000,-1000.0,0.00016438,2]
[425847484,1781988642000,-500.0,0.00016438,2]
[425847489,1781988642000,-526.66452849,0.00016438,2]
[425847518,1781988642000,-500.0,0.00016438,2]
[425847515,1781988642000,-503.60013714,0.00016438,2]
[425847520,1781988642000,-502.26275153,0.00016438,2]
[425847546,1781988642000,-151.0,0.00016438,2]
[425847547,1781988642000,-151.0,0.00016438,2]
[425847549,1781988642000,-151.0,0.00016438,2]
[425847556,1781988642000,-500.0,0.00016438,2]
[425847557,1781988642000,-504.79891002,0.00016438,2]
[425847563,1781988642000,-500.0,0.00016438,2]
[425847567,1781988642000,-500.0,0.00016438,2]
[425847561,1781988642000,-506.37264443,0.00016438,2]
[425847562,1781988642000,-500.0,0.00016438,2]
[425847560,1781988642000,-508.35629836,0.00016438,2]
[425847558,1781988642000,-500.0,0.00016438,2]
[425847568,1781988642000,-500.0,0.00016438,2]
[425847559,1781988642000,-506.29860738,0.00016438,2]
[425847566,1781988642000,-500.0,0.00016438,2]
[425847564,1781988642000,-487.65463749,0.00016438,2]
[425847569,1781988642000,-501.7050315,0.00016438,2]
[425847570,1781988642000,-519.88027305,0.00016438,2]
[425847576,1781988642000,-500.0,0.00016438,2]
[425847572,1781988642000,-500.0,0.00016438,2]
[425847571,1781988642000,-509.98140127,0.00016438,2]
[425847573,1781988642000,-503.27198148,0.00016438,2]
[425847574,1781988642000,-500.0,0.00016438,2]
[425847575,1781988642000,-508.11444773,0.00016438,2]
[425847577,1781988642000,-505.81027957,0.00016438,2]
[425847578,1781988642000,-507.4880239,0.00016438,2]
[425847579,1781988642000,-500.0,0.00016438,2]
[425847519,1781988642000,-500.0,0.00016438,2]
[425847552,1781988642000,-151.0,0.00016438,2]
[425847551,1781988642000,-151.0,0.00016438,2]
[425847565,1781988642000,-505.39577024,0.00016438,2]
[425847555,1781988642000,-178.522627,0.00016438,2]
[425847526,1781988642000,-500.0,0.00016438,2]
[425847554,1781988642000,-151.0,0.00016438,2]
[425847524,1781988642000,-500.0,0.00016438,2]
[425847528,1781988642000,-500.0,0.00016438,2]
[425847523,1781988642000,-501.50544102,0.00016438,2]
[425847527,1781988642000,-500.0,0.00016438,2]
[425847522,1781988642000,-627.13019046,0.00016438,2]
[425847529,1781988642000,-561.666546,0.00016438,2]
[425847525,1781988642000,-500.0,0.00016438,2]
[425847530,1781988642000,-500.0,0.00016438,2]
[425847531,1781988642000,-500.0,0.00016438,2]
[425847532,1781988642000,-500.0,0.00016438,2]
[425847534,1781988642000,-1971.35,0.00016438,2]
[425847536,1781988642000,-500.0,0.00016438,2]
[425847521,1781988642000,-516.1432744,0.00016438,2]
[425847553,1781988642000,-524.88488864,0.00016438,2]
[425847545,1781988642000,-520.35245634,0.00016438,2]
[425847535,1781988642000,-500.0,0.00016438,2]
[425847550,1781988642000,-151.0,0.00016438,2]
[425847548,1781988642000,-500.0,0.00016438,2]
[425847543,1781988642000,-500.0,0.00016438,2]
[425847542,1781988642000,-500.0,0.00016438,2]
[425847544,1781988642000,-506.28557305,0.00016438,2]
[425847540,1781988642000,-528.99797183,0.00016438,2]
[425847541,1781988642000,-500.0,0.00016438,2]
[425847533,1781988642000,-500.0,0.00016438,2]
[425847537,1781988642000,-500.0,0.00016438,2]
[425847538,1781988642000,-549.92,0.00016438,2]
[425847539,1781988642000,-500.0,0.00016438,2]
[425847619,1781988643000,-385.51,0.00016712,2]
[425847625,1781988643000,-500.0,0.00016712,2]
[425847628,1781988643000,-568.55,0.00016712,2]
[425847623,1781988643000,-500.0,0.00016712,2]
[425847622,1781988643000,-500.0,0.00016712,2]
[425847620,1781988643000,-500.0,0.00016712,2]
[425847614,1781988643000,-500.0,0.00016712,2]
[425847618,1781988643000,-500.0,0.00016712,2]
[425847617,1781988643000,-724.83,0.00016712,2]
[425847615,1781988643000,-500.0,0.00016712,2]
[425847612,1781988643000,-500.0,0.00016712,2]
[425847634,1781988643000,-500.0,0.00016712,2]
[425847621,1781988643000,-500.0,0.00016712,2]
[425847633,1781988643000,-500.0,0.00016712,2]
[425847644,1781988643000,-500.0,0.00016986,2]
[425847629,1781988643000,-1971.35,0.00016712,2]
[425847627,1781988643000,-500.0,0.00016712,2]
[425847631,1781988643000,-500.0,0.00016712,2]
[425847630,1781988643000,-500.0,0.00016712,2]
[425847626,1781988643000,-299.79,0.00016712,2]
[425847632,1781988643000,-500.0,0.00016712,2]
[425847635,1781988643000,-500.0,0.00016712,2]
[425847636,1781988643000,-486.34518872,0.00016712,2]
[425847648,1781988643000,-500.0,0.00016986,2]
[425847638,1781988643000,-500.0,0.00016796,2]
[425847637,1781988643000,-726.551701,0.00016731,2]
[425847639,1781988643000,-457.97,0.00016986,2]
[425847616,1781988643000,-500.0,0.00016712,2]
[425847624,1781988643000,-500.0,0.00016712,2]
[425847613,1781988643000,-500.0,0.00016712,2]
[425847581,1781988643000,-500.0,0.00016438,2]
[425847610,1781988643000,-500.0,0.00016712,2]
[425847640,1781988643000,-215.42,0.00016986,2]
[425847580,1781988643000,-511.49432951,0.00016438,2]
[425847582,1781988643000,-500.0,0.00016438,2]
[425847587,1781988643000,-151.0,0.00016438,2]
[425847583,1781988643000,-470.0,0.00016438,2]
[425847589,1781988643000,-3451.58409733,0.00016536,2]
[425847586,1781988643000,-157.914151,0.00016438,2]
[425847585,1781988643000,-500.0,0.00016438,2]
[425847588,1781988643000,-500.0,0.00016522,2]
[425847590,1781988643000,-479.88462939,0.000166,2]
[425847584,1781988643000,-500.0,0.00016438,2]
[425847592,1781988643000,-1004.0,0.000166,2]
[425847594,1781988643000,-1004.0,0.000166,2]
[425847591,1781988643000,-1004.0,0.000166,2]
[425847593,1781988643000,-1004.0,0.000166,2]
[425847595,1781988643000,-1004.0,0.000166,2]
[425847596,1781988643000,-1004.0,0.000166,2]
[425847601,1781988643000,-272.19,0.00016712,2]
[425847599,1781988643000,-500.0,0.00016712,2]
[425847600,1781988643000,-500.0,0.00016712,2]
[425847598,1781988643000,-1004.0,0.000166,2]
[425847608,1781988643000,-500.0,0.00016712,2]
[425847602,1781988643000,-425.35,0.00016712,2]
[425847607,1781988643000,-500.0,0.00016712,2]
[425847604,1781988643000,-500.0,0.00016712,2]
[425847606,1781988643000,-158.87,0.00016712,2]
[425847605,1781988643000,-170.09,0.00016712,2]
[425847603,1781988643000,-500.0,0.00016712,2]
[425847609,1781988643000,-308.02,0.00016712,2]
[425847611,1781988643000,-500.0,0.00016712,2]
[425847642,1781988643000,-500.0,0.00016986,2]
[425847698,1781988643000,-1004.0,0.00017575,2]
[425847641,1781988643000,-169.86,0.00016986,2]
[425847680,1781988643000,-3451.58409733,0.00017475,2]
[425847677,1781988643000,-3349.27818986,0.00017297,2]
[425847685,1781988643000,-166.0,0.00017575,2]
[425847686,1781988643000,-1004.0,0.00017575,2]
[425847682,1781988643000,-1971.35,0.00017534,2]
[425847681,1781988643000,-724.83,0.00017534,2]
[425847683,1781988643000,-166.0,0.00017575,2]
[425847687,1781988643000,-1004.0,0.00017575,2]
[425847684,1781988643000,-166.0,0.00017575,2]
[425847689,1781988643000,-1004.0,0.00017575,2]
[425847688,1781988643000,-1004.0,0.00017575,2]
[425847703,1781988643000,-1004.0,0.00017575,2]
[425847697,1781988643000,-1004.0,0.00017575,2]
[425847692,1781988643000,-1004.0,0.00017575,2]
[425847694,1781988643000,-1004.0,0.00017575,2]
[425847693,1781988643000,-1004.0,0.00017575,2]
[425847690,1781988643000,-1004.0,0.00017575,2]
[425847695,1781988643000,-1004.0,0.00017575,2]
[425847696,1781988643000,-1004.0,0.00017575,2]
[425847700,1781988643000,-1004.0,0.00017575,2]
[425847699,1781988643000,-1004.0,0.00017575,2]
[425847691,1781988643000,-1004.0,0.00017575,2]
[425847701,1781988643000,-1004.0,0.00017575,2]
[425847704,1781988643000,-1004.0,0.00017575,2]
[425847702,1781988643000,-1004.0,0.00017575,2]
[425847705,1781988643000,-1004.0,0.00017575,2]
[425847706,1781988643000,-1004.0,0.00017575,2]
[425847707,1781988643000,-1004.0,0.00017575,2]
[425847643,1781988643000,-500.0,0.00016986,2]
[425847679,1781988643000,-726.551701,0.00017407,2]
[425847678,1781988643000,-185.7,0.00017387,2]
[425847708,1781988643000,-1004.0,0.00017575,2]
[425847676,1781988643000,-1971.35,0.0001726,2]
[425847646,1781988643000,-500.0,0.00016986,2]
[425847647,1781988643000,-500.0,0.00016986,2]
[425847649,1781988643000,-500.0,0.00016986,2]
[425847651,1781988643000,-500.0,0.00016986,2]
[425847661,1781988643000,-1971.35,0.00016986,2]
[425847654,1781988643000,-500.0,0.00016986,2]
[425847660,1781988643000,-500.0,0.00016986,2]
[425847675,1781988643000,-500.0,0.0001726,2]
[425847655,1781988643000,-500.0,0.00016986,2]
[425847650,1781988643000,-500.0,0.00016986,2]
[425847657,1781988643000,-500.0,0.00016986,2]
[425847653,1781988643000,-202.5,0.00016986,2]
[425847659,1781988643000,-500.0,0.00016986,2]
[425847658,1781988643000,-500.0,0.00016986,2]
[425847652,1781988643000,-724.83,0.00016986,2]
[425847662,1781988643000,-500.0,0.00016986,2]
[425847656,1781988643000,-271.21,0.00016986,2]
[425847674,1781988643000,-724.83,0.0001726,2]
[425847672,1781988643000,-326.9920017,0.0001725,2]
[425847667,1781988643000,-3451.58409733,0.00017005,2]
[425847673,1781988643000,-178.3,0.00017255,2]
[425847670,1781988643000,-500.0,0.0001707,2]
[425847645,1781988643000,-201.09,0.00016986,2]
[425847668,1781988643000,-171.88,0.00017023,2]
[425847666,1781988643000,-500.0,0.00016986,2]
[425847665,1781988643000,-500.0,0.00016986,2]
[425847669,1781988643000,-170.5,0.0001706,2]
[425847664,1781988643000,-500.0,0.00016986,2]
[425847663,1781988643000,-215.41,0.00016986,2]
[425847671,1781988643000,-252.73837912,0.000171,2]
[425847753,1781988644000,-170.0,0.000182,2]
[425847752,1781988644000,-480.0,0.000182,2]
[425847747,1781988644000,-726.551701,0.00018083,2]
[425847750,1781988644000,-1000.0,0.000182,2]
[425847751,1781988644000,-1000.0,0.000182,2]
[425847748,1781988644000,-160.0,0.00018181,2]
[425847749,1781988644000,-3349.27818986,0.00018198,2]
[425847745,1781988644000,-724.83,0.00018082,2]
[425847744,1781988644000,-458.0970838,0.00018072,2]
[425847741,1781988644000,-160.0,0.00018061,2]
[425847746,1781988644000,-1971.35,0.00018082,2]
[425847743,1781988644000,-326.9485734,0.00018072,2]
[425847768,1781988644000,-1004.0,0.00018335,2]
[425847763,1781988644000,-1004.0,0.00018335,2]
[425847760,1781988644000,-1004.0,0.00018335,2]
[425847765,1781988644000,-1004.0,0.00018335,2]
[425847762,1781988644000,-1004.0,0.00018335,2]
[425847759,1781988644000,-1004.0,0.00018335,2]
[425847764,1781988644000,-1004.0,0.00018335,2]
[425847755,1781988644000,-1000.0,0.000182,2]
[425847756,1781988644000,-650.0,0.000182,2]
[425847758,1781988644000,-166.0,0.00018335,2]
[425847761,1781988644000,-1004.0,0.00018335,2]
[425847757,1781988644000,-166.0,0.00018335,2]
[425847766,1781988644000,-1004.0,0.00018335,2]
[425847778,1781988644000,-168.3888056,0.00018513,2]
[425847742,1781988644000,-160.0,0.00018061,2]
[425847754,1781988644000,-1000.0,0.000182,2]
[425847740,1781988644000,-160.0,0.00018061,2]
[425847722,1781988644000,-1004.0,0.0001788,2]
[425847737,1781988644000,-160.0,0.00018061,2]
[425847771,1781988644000,-1004.0,0.00018335,2]
[425847710,1781988644000,-1004.0,0.00017575,2]
[425847711,1781988644000,-1004.0,0.00017575,2]
[425847709,1781988644000,-1004.0,0.00017575,2]
[425847712,1781988644000,-1004.0,0.00017575,2]
[425847713,1781988644000,-1004.0,0.00017575,2]
[425847721,1781988644000,-1004.0,0.0001788,2]
[425847725,1781988644000,-166.79824418,0.00017965,2]
[425847717,1781988644000,-724.83,0.00017808,2]
[425847716,1781988644000,-720.0,0.00017725,2]
[425847720,1781988644000,-1004.0,0.0001788,2]
[425847719,1781988644000,-1004.0,0.0001788,2]
[425847724,1781988644000,-162.380719,0.00017965,2]
[425847735,1781988644000,-160.0,0.00018061,2]
[425847714,1781988644000,-1004.0,0.00017575,2]
[425847715,1781988644000,-1004.0,0.00017575,2]
[425847727,1781988644000,-1000.0,0.00018,2]
[425847726,1781988644000,-172.34,0.00017969,2]
[425847729,1781988644000,-326.9485734,0.00018044,2]
[425847728,1781988644000,-1840.0,0.00018032,2]
[425847739,1781988644000,-160.0,0.00018061,2]
[425847736,1781988644000,-160.0,0.00018061,2]
[425847730,1781988644000,-326.9485734,0.00018044,2]
[425847733,1781988644000,-160.0,0.00018061,2]
[425847734,1781988644000,-160.0,0.00018061,2]
[425847732,1781988644000,-160.0,0.00018061,2]
[425847731,1781988644000,-326.9485734,0.00018044,2]
[425847738,1781988644000,-160.0,0.00018061,2]
[425847723,1781988644000,-1004.0,0.0001788,2]
[425847770,1781988644000,-1004.0,0.00018335,2]
[425847718,1781988644000,-1971.35,0.00017808,2]
[425847774,1781988644000,-1004.0,0.00018335,2]
[425847810,1781988644000,-297.46144775,0.00018618,2]
[425847811,1781988644000,-665.9577649,0.00018618,2]
[425847808,1781988644000,-374.60124276,0.00018618,2]
[425847809,1781988644000,-213.42137416,0.00018618,2]
[425847812,1781988644000,-214.266648,0.0001862,2]
[425847813,1781988644000,-164.271096,0.0001862,2]
[425847816,1781988644000,-724.83,0.0001863,2]
[425847807,1781988644000,-208.11180153,0.00018618,2]
[425847815,1781988644000,-319.58512968,0.0001862,2]
[425847814,1781988644000,-161.941302,0.0001862,2]
[425847817,1781988644000,-1971.35,0.0001863,2]
[425847818,1781988644000,-726.551701,0.00018759,2]
[425847820,1781988644000,-325.723259,0.00018806,2]
[425847804,1781988644000,-350.04208113,0.00018599,2]
[425847821,1781988644000,-326.9920017,0.00018866,2]
[425847824,1781988644000,-458.0970838,0.00018866,2]
[425847822,1781988644000,-326.9485736,0.00018866,2]
[425847826,1781988644000,-326.9485734,0.00018866,2]
[425847819,1781988644000,-797.0,0.000188,2]
[425847827,1781988644000,-326.9485734,0.00018866,2]
[425847825,1781988644000,-326.9485735,0.00018866,2]
[425847828,1781988644000,-458.0970838,0.00018866,2]
[425847829,1781988644000,-458.0290866,0.00018866,2]
[425847830,1781988644000,-458.0290866,0.00018893,2]
[425847832,1781988644000,-458.0290866,0.00018893,2]
[425847831,1781988644000,-326.5363121,0.00018893,2]
[425847833,1781988644000,-724.83,0.00018904,2]
[425847773,1781988644000,-1004.0,0.00018335,2]
[425847823,1781988644000,-458.0290866,0.00018866,2]
[425847805,1781988644000,-260.27876678,0.00018618,2]
[425847806,1781988644000,-333.538773,0.00018618,2]
[425847803,1781988644000,-176.95496535,0.00018599,2]
[425847767,1781988644000,-1004.0,0.00018335,2]
[425847776,1781988644000,-724.83,0.00018356,2]
[425847769,1781988644000,-1004.0,0.00018335,2]
[425847772,1781988644000,-1004.0,0.00018335,2]
[425847777,1781988644000,-1971.35,0.00018356,2]
[425847775,1781988644000,-1004.0,0.00018335,2]
[425847780,1781988644000,-164.61257602,0.00018599,2]
[425847779,1781988644000,-166.79824418,0.00018513,2]
[425847782,1781988644000,-156.81438365,0.00018599,2]
[425847784,1781988644000,-177.59600434,0.00018599,2]
[425847783,1781988644000,-151.827212,0.00018599,2]
[425847785,1781988644000,-298.64152981,0.00018599,2]
[425847802,1781988644000,-186.27726033,0.00018599,2]
[425847787,1781988644000,-152.5892051,0.00018599,2]
[425847788,1781988644000,-580.36551478,0.00018599,2]
[425847781,1781988644000,-195.31401034,0.00018599,2]
[425847786,1781988644000,-162.15086646,0.00018599,2]
[425847800,1781988644000,-165.13736609,0.00018599,2]
[425847801,1781988644000,-179.27639101,0.00018599,2]
[425847789,1781988644000,-156.97047874,0.00018599,2]
[425847795,1781988644000,-184.0580966,0.00018599,2]
[425847796,1781988644000,-190.34348494,0.00018599,2]
[425847799,1781988644000,-188.94432561,0.00018599,2]
[425847798,1781988644000,-158.57297923,0.00018599,2]
[425847797,1781988644000,-166.84870827,0.00018599,2]
[425847794,1781988644000,-321.08753141,0.00018599,2]
[425847792,1781988644000,-189.59857367,0.00018599,2]
[425847791,1781988644000,-1436.51045435,0.00018599,2]
[425847790,1781988644000,-1075.41634801,0.00018599,2]
[425847793,1781988644000,-182.62856644,0.00018599,2]
[425847840,1781988645000,-10939.648841,0.00018964,2]
[425847837,1781988645000,-707.455008,0.00018964,2]
[425847834,1781988645000,-1971.35,0.00018904,2]
[425847835,1781988645000,-6915.02341312,0.00018964,2]
[425847836,1781988645000,-317.203467,0.00018964,2]
[425847838,1781988645000,-1461.540866,0.00018964,2]
[425847841,1781988645000,-8728.609088,0.00018964,2]
[425847843,1781988645000,-4598.729685,0.00018964,2]
[425847839,1781988645000,-18296.748068,0.00018964,2]
[425847842,1781988645000,-6000.433796,0.00018964,2]
[425847847,1781988645000,-5118.45179301,0.00019,2]
[425847844,1781988645000,-5829.975343,0.00018964,2]
[425847848,1781988645000,-1700.44,0.00019,2]
[425847845,1781988645000,-421231.28948117,0.00019,2]
[425847846,1781988645000,-19750.93082132,0.00019,2]
[425847856,1781988647000,-345.51131275,0.00019,2]